fUST/lending_fUST_20260218
["ID","MTS","AMOUNT","RATE_DAILY","PERIOD"]
[405920611,1771414239036,-150.0,0.00020824,2]
[405920613,1771414239045,-215.53371193,0.00020879,2]
[405920615,1771414239054,-15807.49962206,0.00021,2]
[405920797,1771414245986,-500.0,0.00015341,2]
[405920798,1771414245996,-500.0,0.00015496,2]
[405920799,1771414246005,-995.35430156,0.00015532,2]
[405920805,1771415049265,-290.41510805,0.00013159,2]
[405920806,1771415049290,-209.58489195,0.00013292,2]
[405920807,1771415196150,-233.34125841,0.00013292,2]
[405920857,1771415438165,-290.41510805,0.00012768,2]
[405920858,1771415438176,-290.41510805,0.00012897,2]
[405920859,1771415438186,-289.05256199,0.00013393,2]
[405920860,1771415438196,-500.0,0.00013699,2]
[405920861,1771415438205,-1000.0,0.00014,2]
[405920862,1771415438218,-959.08420857,0.00014247,2]
[405920863,1771415438228,-1000.0,0.000145,2]
[405920864,1771415438237,-1000.0,0.00015,2]
[405920865,1771415438247,-5645.02158927,0.00015034,2]
[405920866,1771415438256,-369.30457479,0.00015134,2]
[405920867,1771415438266,-500.0,0.00015134,2]
[405920869,1771415438275,-500.0,0.00015134,2]
[405920871,1771415438285,-114.37532361,0.00015134,2]
[405920873,1771415438295,-385.62467639,0.00015134,2]
[405920874,1771415438305,-500.0,0.00015134,2]
[405920875,1771415438315,-500.0,0.00015134,2]
[405920876,1771415438324,-500.0,0.00015134,2]
[405920877,1771415438334,-500.0,0.00015134,2]
[405920878,1771415438343,-500.0,0.00015134,2]
[405920879,1771415438352,-500.0,0.00015134,2]
[405920880,1771415438361,-100.49856552,0.00015134,2]
[405920931,1771415440376,-399.50143448,0.00015134,2]
[405920933,1771415440385,-500.0,0.00015134,2]
[405920935,1771415440394,-500.0,0.00015134,2]
[405920937,1771415440403,-500.0,0.00015134,2]
[405920939,1771415440412,-500.0,0.00015134,2]
[405920941,1771415440421,-500.0,0.00015134,2]
[405920943,1771415440430,-500.0,0.00015134,2]
[405920945,1771415440438,-157.47860099,0.00015134,2]
[405920947,1771415440447,-500.0,0.00015134,2]
[405920949,1771415440457,-500.0,0.00015134,2]
[405920951,1771415440466,-500.0,0.00015134,2]
[405920953,1771415440474,-500.0,0.00015134,2]
[405920955,1771415440484,-500.0,0.00015134,2]
[405920957,1771415440493,-500.0,0.00015134,2]
[405920959,1771415440502,-500.0,0.00015134,2]
[405920961,1771415440511,-500.0,0.00015134,2]
[405920962,1771415440519,-500.0,0.00015134,2]
[405920963,1771415440530,-500.0,0.00015134,2]
[405920964,1771415440540,-500.0,0.00015134,2]
[405920965,1771415440549,-500.0,0.00015134,2]
[405920966,1771415440559,-500.0,0.00015134,2]
[405920967,1771415440568,-500.0,0.00015134,2]
[405920968,1771415440578,-500.0,0.00015134,2]
[405920969,1771415440587,-500.0,0.00015134,2]
[405920970,1771415440596,-500.0,0.00015134,2]
[405920971,1771415440606,-500.0,0.00015134,2]
[405920972,1771415440616,-569.09174549,0.00015134,2]
[405920973,1771415440625,-500.0,0.00015134,2]
[405920974,1771415440635,-52.38572611,0.00015134,2]
[405920975,1771415440718,-447.61427389,0.00015134,2]
[405920976,1771415440730,-500.0,0.00015134,2]
[405920977,1771415440740,-226.33713284,0.00015134,2]
[405921505,1771415446195,-273.66286716,0.00015134,2]
[405921507,1771415446204,-500.0,0.00015134,2]
[405921509,1771415446214,-500.0,0.00015134,2]
[405921511,1771415446224,-500.0,0.00015134,2]
[405921513,1771415446233,-500.0,0.00015134,2]
[405921515,1771415446243,-500.0,0.00015134,2]
[405921518,1771415446253,-500.0,0.00015134,2]
[405921520,1771415446264,-500.0,0.00015134,2]
[405921522,1771415446273,-215.98032265,0.00015134,2]
[405921524,1771415446284,-500.0,0.00015134,2]
[405921526,1771415446293,-500.0,0.00015134,2]
[405921528,1771415446303,-500.0,0.00015134,2]
[405921530,1771415446313,-500.0,0.00015134,2]
[405921532,1771415446323,-500.0,0.00015134,2]
[405921534,1771415446332,-500.0,0.00015134,2]
[405921536,1771415446342,-500.0,0.00015134,2]
[405921538,1771415446351,-500.0,0.00015134,2]
[405921540,1771415446360,-500.0,0.00015134,2]
[405921542,1771415446370,-500.0,0.00015134,2]
[405921544,1771415446379,-500.0,0.00015134,2]
[405921546,1771415446390,-500.0,0.00015134,2]
[405921548,1771415446400,-500.0,0.00015134,2]
[405921550,1771415446409,-500.0,0.00015134,2]
[405921552,1771415446418,-500.0,0.00015134,2]
[405921554,1771415446428,-500.0,0.00015134,2]
[405921556,1771415446438,-500.0,0.00015134,2]
[405921558,1771415446447,-500.0,0.00015134,2]
[405921560,1771415446459,-620.64999755,0.00015134,2]
[405921562,1771415446473,-500.0,0.00015134,2]
[405921564,1771415446486,-500.0,0.00015134,2]
[405921566,1771415446496,-500.0,0.00015134,2]
[405921568,1771415446505,-500.0,0.00015134,2]
[405921570,1771415446514,-500.0,0.00015134,2]
[405921572,1771415446524,-500.0,0.00015134,2]
[405921574,1771415446533,-500.0,0.00015134,2]
[405921576,1771415446542,-178.95131173,0.00015134,2]
[405921578,1771415446558,-321.04868827,0.00015134,2]
[405921580,1771415446568,-500.0,0.00015134,2]
[405921582,1771415446577,-500.0,0.00015134,2]
[405921584,1771415446586,-500.0,0.00015134,2]
[405921586,1771415446595,-500.0,0.00015134,2]
[405921588,1771415446605,-500.0,0.00015134,2]
[405921590,1771415446614,-398.57233607,0.00015134,2]
[405921592,1771415446623,-500.0,0.00015134,2]
[405921594,1771415446632,-500.0,0.00015134,2]
[405921596,1771415446641,-500.0,0.00015134,2]
[405921598,1771415446650,-500.0,0.00015134,2]
[405921600,1771415446659,-500.0,0.00015134,2]
[405921602,1771415446668,-500.0,0.00015134,2]
[405921604,1771415446677,-500.0,0.00015134,2]
[405921606,1771415446686,-310.00439841,0.00015134,2]
[405921608,1771415446695,-500.0,0.00015134,2]
[405921610,1771415446705,-499.99999999,0.00015134,2]
[405921612,1771415446714,-500.0,0.00015134,2]
[405921614,1771415446723,-500.0,0.00015134,2]
[405921616,1771415446735,-500.0,0.00015134,2]
[405921618,1771415446745,-500.0,0.00015134,2]
[405921620,1771415446754,-500.0,0.00015134,2]
[405921622,1771415446763,-500.0,0.00015134,2]
[405921624,1771415446775,-500.0,0.00015134,2]
[405921626,1771415446784,-500.0,0.00015134,2]
[405921629,1771415446798,-500.0,0.00015134,2]
[405921631,1771415446810,-500.0,0.00015134,2]
[405921633,1771415446819,-500.0,0.00015134,2]
[405921635,1771415446828,-500.0,0.00015134,2]
[405921637,1771415446837,-500.0,0.00015134,2]
[405921639,1771415446847,-500.0,0.00015134,2]
[405921640,1771415446856,-500.0,0.00015134,2]
[405921642,1771415446865,-500.0,0.00015134,2]
[405921644,1771415446874,-500.0,0.00015134,2]
[405921646,1771415446883,-500.0,0.00015134,2]
[405921648,1771415446892,-500.0,0.00015134,2]
[405921650,1771415446901,-500.0,0.00015134,2]
[405921652,1771415446910,-500.0,0.00015134,2]
[405921654,1771415446920,-500.0,0.00015134,2]
[405921656,1771415446929,-500.0,0.00015134,2]
[405921658,1771415446938,-235.62777749,0.00015134,2]
[405921660,1771415446948,-544.51871287,0.00015235,2]
[405921662,1771415446957,-11407.99511244,0.00015532,2]
[405921664,1771415446966,-1000.0,0.00016,2]
[405921666,1771415446975,-200.0,0.00016438,2]
[405921668,1771415446985,-200.0,0.00016438,2]
[405921670,1771415446994,-5645.0215892,0.00018586,2]
[405921672,1771415447003,-743.5267485,0.00019081,2]
[405921674,1771415447013,-1803.0,0.00019973,5]
[405921676,1771415447022,-444.0,0.0002,2]
[405921678,1771415447031,-426.0,0.00020084,2]
[405921680,1771415447041,-181.0,0.00020084,2]
[405921682,1771415447050,-208.935,0.00020084,2]
[405921684,1771415447059,-301.06172324,0.0002058,2]
[405921686,1771415447068,-6093.00084016,0.0002098,10]
[405922173,1771416403130,-176.07124621,0.00013107,2]
[405922178,1771416632267,-240.8688819,0.00012064,2]
[405922181,1771416632399,-592.0,0.00012186,2]
[405922184,1771416632434,-240.8688819,0.00012186,2]
[405922185,1771416632443,-103.34538383,0.00013106,2]
[405922186,1771416632456,-114.79567981,0.00013106,2]
[405922187,1771416632465,-1200.0,0.00013134,2]
[405922189,1771416632474,-300.0,0.00013135,2]
[405922191,1771416632483,-299.15289048,0.00013135,2]
[405922192,1771416632498,-0.84710952,0.00013135,2]
[405922193,1771416632507,-300.0,0.00013135,2]
[405922194,1771416632517,-300.0,0.00013135,2]
[405922195,1771416632527,-300.0,0.00013135,2]
[405922196,1771416632536,-367.8368411,0.00013135,2]
[405922197,1771416632545,-4117.31099117,0.00013137,2]
[405922221,1771416638406,-500.0,0.00013135,2]
[405922223,1771416638416,-408.10305921,0.00013135,2]
[405922901,1771416645685,-91.89694079,0.00013135,2]
[405922903,1771416645694,-500.0,0.00013135,2]
[405922905,1771416645703,-500.0,0.00013135,2]
[405922907,1771416645712,-500.0,0.00013135,2]
[405922909,1771416645721,-500.0,0.00013135,2]
[405922911,1771416645730,-500.0,0.00013135,2]
[405922913,1771416645739,-429.40858025,0.00013135,2]
[405922975,1771416646331,-70.59141975,0.00013135,2]
[405922977,1771416646341,-500.0,0.00013135,2]
[405922979,1771416646350,-500.0,0.00013135,2]
[405922981,1771416646359,-500.0,0.00013135,2]
[405922983,1771416646369,-443.3290487,0.00013135,2]
[405922985,1771416646378,-500.0,0.00013135,2]
[405922987,1771416646386,-500.0,0.00013135,2]
[405922989,1771416646395,-500.0,0.00013135,2]
[405922991,1771416646404,-500.0,0.00013135,2]
[405922993,1771416646413,-500.0,0.00013135,2]
[405922995,1771416646423,-214.83394436,0.00013135,2]
[405922997,1771416646432,-500.0,0.00013135,2]
[405922999,1771416646441,-500.0,0.00013135,2]
[405923001,1771416646454,-500.0,0.00013135,2]
[405923003,1771416646463,-284.74267995,0.00013135,2]
[405923005,1771416646472,-500.0,0.00013135,2]
[405923007,1771416646481,-500.0,0.00013135,2]
[405923009,1771416646490,-500.0,0.00013135,2]
[405923011,1771416646499,-500.0,0.00013135,2]
[405923013,1771416646508,-500.0,0.00013135,2]
[405923015,1771416646517,-500.0,0.00013135,2]
[405923017,1771416646528,-500.0,0.00013135,2]
[405923019,1771416646537,-500.0,0.00013135,2]
[405923021,1771416646547,-500.0,0.00013135,2]
[405923023,1771416646556,-500.0,0.00013135,2]
[405923025,1771416646565,-500.0,0.00013135,2]
[405923027,1771416646574,-500.0,0.00013135,2]
[405923029,1771416646584,-500.0,0.00013135,2]
[405923031,1771416646593,-500.0,0.00013135,2]
[405923033,1771416646603,-500.0,0.00013135,2]
[405923035,1771416646611,-500.0,0.00013135,2]
[405923037,1771416646620,-500.0,0.00013135,2]
[405923039,1771416646629,-500.0,0.00013135,2]
[405923041,1771416646639,-500.0,0.00013135,2]
[405923043,1771416646647,-42.81499393,0.00013135,2]
[405923045,1771416646659,-457.18500607,0.00013135,2]
[405923047,1771416646668,-500.0,0.00013135,2]
[405923049,1771416646676,-500.0,0.00013135,2]
[405923051,1771416646685,-500.0,0.00013135,2]
[405923053,1771416646694,-500.0,0.00013135,2]
[405923055,1771416646703,-500.0,0.00013135,2]
[405923057,1771416646712,-500.0,0.00013135,2]
[405923059,1771416646722,-500.0,0.00013135,2]
[405923061,1771416646731,-500.0,0.00013135,2]
[405923063,1771416646740,-500.0,0.00013135,2]
[405923065,1771416646750,-500.0,0.00013135,2]
[405923067,1771416646759,-500.0,0.00013135,2]
[405923069,1771416646768,-500.0,0.00013135,2]
[405923071,1771416646777,-500.0,0.00013135,2]
[405923073,1771416646786,-500.0,0.00013135,2]
[405923075,1771416646796,-500.0,0.00013135,2]
[405923077,1771416646805,-500.0,0.00013135,2]
[405923079,1771416646814,-500.0,0.00013135,2]
[405923081,1771416646824,-500.0,0.00013135,2]
[405923083,1771416646833,-500.0,0.00013135,2]
[405923085,1771416646842,-500.0,0.00013135,2]
[405923087,1771416646852,-500.0,0.00013135,2]
[405923090,1771416646861,-500.0,0.00013135,2]
[405923092,1771416646870,-500.0,0.00013135,2]
[405923093,1771416646879,-500.0,0.00013135,2]
[405923095,1771416646889,-464.35856711,0.00013135,2]
[405923098,1771416646898,-500.0,0.00013135,2]
[405923100,1771416646907,-500.0,0.00013135,2]
[405923101,1771416646916,-500.0,0.00013135,2]
[405923104,1771416646928,-500.0,0.00013135,2]
[405923106,1771416646944,-500.0,0.00013135,2]
[405923108,1771416646954,-500.0,0.00013135,2]
[405923110,1771416646963,-116.45520073,0.00013137,2]
[405923112,1771416646972,-25814.17894369,0.00013237,2]
[405923114,1771416646981,-6963.20312167,0.0001334,2]
[405923116,1771416646996,-4091.44632353,0.0001334,2]
[405923118,1771416647005,-300.0,0.00013606,2]
[405923120,1771416647014,-300.0,0.00013606,2]
[405923122,1771416647023,-300.0,0.00013606,2]
[405923124,1771416647032,-300.0,0.00013606,2]
[405923126,1771416647042,-300.0,0.00013606,2]
[405923128,1771416647051,-300.0,0.00013606,2]
[405923130,1771416647061,-300.0,0.00013606,2]
[405923132,1771416647074,-300.0,0.00013606,2]
[405923134,1771416647084,-300.0,0.00013606,2]
[405923137,1771416647093,-300.0,0.00013606,2]
[405923139,1771416647103,-300.0,0.00013606,2]
[405923140,1771416647112,-300.0,0.00013606,2]
[405923143,1771416647121,-300.0,0.00013606,2]
[405923145,1771416647131,-300.0,0.00013606,2]
[405923147,1771416647141,-300.0,0.00013606,2]
[405923149,1771416647151,-308.117043,0.00013699,2]
[405923151,1771416647160,-500.0,0.00013699,2]
[405923153,1771416647169,-500.0,0.00013699,2]
[405923155,1771416647179,-500.0,0.00013699,2]
[405923157,1771416647189,-500.0,0.00013699,2]
[405923159,1771416647199,-500.0,0.00013699,2]
[405923161,1771416647209,-500.0,0.00013699,2]
[405923163,1771416647218,-500.0,0.00013699,2]
[405923165,1771416647228,-500.0,0.00013699,2]
[405923167,1771416647237,-562.96473678,0.00013699,2]
[405923169,1771416647246,-500.0,0.00013699,2]
[405923171,1771416647255,-1020.67061505,0.00014021,2]
[405923650,1771417832387,-606.0,0.00012359,2]
[405923652,1771417832396,-606.0,0.00012484,2]
[405923654,1771417832405,-158.1031132,0.00013326,2]
[405923656,1771417832415,-167.45060798,0.00013393,2]
[405923658,1771417832427,-30.85413424,0.00013393,2]
[405923660,1771417832437,-338.00669205,0.00013393,2]
[405923714,1771417838571,-161.99330795,0.00013393,2]
[405923716,1771417838581,-382.59211652,0.00013393,2]
[405923718,1771417838592,-500.0,0.00013393,2]
[405923720,1771417838603,-500.0,0.00013393,2]
[405923722,1771417838613,-507.59191786,0.00013393,2]
[405923724,1771417838622,-500.0,0.00013393,2]
[405923726,1771417838633,-590.88704028,0.00013393,2]
[405923728,1771417838643,-500.0,0.00013393,2]
[405923730,1771417838652,-500.0,0.00013393,2]
[405923732,1771417838662,-500.0,0.00013393,2]
[405923734,1771417838672,-356.93561739,0.00013393,2]
[405923923,1771417840737,-143.06438261,0.00013393,2]
[405923925,1771417840746,-500.0,0.00013393,2]
[405923927,1771417840755,-482.28150842,0.00013393,2]
[405924356,1771417845130,-17.71849158,0.00013393,2]
[405924358,1771417845140,-500.0,0.00013393,2]
[405924361,1771417845150,-500.0,0.00013393,2]
[405924362,1771417845159,-300.0,0.00013393,2]
[405924365,1771417845169,-334.01233588,0.00013394,2]
[405924366,1771417845178,-1500.96917254,0.00013395,2]
[405924480,1771417846480,-12390.29323874,0.00013395,2]
[405924482,1771417846490,-300.0,0.00013397,2]
[405924484,1771417846499,-300.0,0.00013397,2]
[405924486,1771417846508,-300.0,0.00013397,2]
[405924488,1771417846518,-300.0,0.00013397,2]
[405924490,1771417846530,-300.0,0.00013397,2]
[405924492,1771417846539,-300.0,0.00013397,2]
[405924494,1771417846549,-300.0,0.00013397,2]
[405924496,1771417846558,-300.0,0.00013397,2]
[405924498,1771417846567,-300.0,0.00013397,2]
[405924500,1771417846576,-300.0,0.00013397,2]
[405924502,1771417846586,-300.0,0.00013397,2]
[405924504,1771417846595,-300.0,0.00013397,2]
[405924506,1771417846605,-300.0,0.00013397,2]
[405924508,1771417846614,-300.0,0.00013397,2]
[405924510,1771417846623,-300.0,0.00013397,2]
[405924512,1771417846632,-215.55719083,0.00013699,2]
[405925166,1771418802132,-227.61425719,0.00012872,2]
[405925182,1771419031627,-741.23986052,0.00012412,2]
[405925184,1771419031636,-165.50736794,0.00012537,2]
[405925240,1771419037922,-575.73249258,0.00012537,2]
[405925242,1771419037931,-261.89356193,0.0001264,2]
[405925244,1771419037940,-186.51976947,0.00012989,7]
[405925246,1771419037951,-205.6772936,0.00013353,2]
[405925248,1771419037960,-191.5,0.000134,2]
[405925250,1771419037970,-163.53727043,0.0001395,2]
[405925253,1771419037987,-575.73249258,0.00012412,2]
[405925255,1771419037996,-33.44511926,0.0001395,2]
[405925257,1771419038006,-500.0,0.0001395,2]
[405925259,1771419038015,-621.20967114,0.0001395,2]
[405925261,1771419038025,-500.0,0.0001395,2]
[405925263,1771419038034,-358.17449794,0.0001395,2]
[405925265,1771419038044,-500.0,0.0001395,2]
[405925267,1771419038054,-335.39636785,0.0001395,2]
[405925269,1771419038063,-167.51021309,0.0001395,2]
[405925271,1771419038072,-300.0,0.0001395,2]
[405925273,1771419038081,-300.0,0.0001395,2]
[405925275,1771419038090,-300.0,0.0001395,2]
[405925277,1771419038100,-300.0,0.0001395,2]
[405925279,1771419038109,-1200.0,0.0001395,2]
[405925281,1771419038119,-12030.0456105,0.00013951,2]
[405925283,1771419038129,-233.80863512,0.00014228,2]
[405925285,1771419038138,-300.0,0.00014229,2]
[405925287,1771419038147,-300.0,0.00014229,2]
[405925289,1771419038156,-300.0,0.00014229,2]
[405925291,1771419038165,-300.0,0.00014229,2]
[405925293,1771419038176,-300.0,0.00014229,2]
[405925295,1771419038185,-300.0,0.00014229,2]
[405925297,1771419038194,-300.0,0.00014229,2]
[405925299,1771419038204,-300.0,0.00014229,2]
[405925301,1771419038213,-300.0,0.00014229,2]
[405925303,1771419038222,-300.0,0.00014229,2]
[405925304,1771419038232,-300.0,0.00014229,2]
[405925306,1771419038241,-300.0,0.00014229,2]
[405925308,1771419038250,-300.0,0.00014229,2]
[405925310,1771419038262,-300.0,0.00014229,2]
[405925312,1771419038272,-300.0,0.00014229,2]
[405925314,1771419038281,-629.84971581,0.0001444,2]
[405925316,1771419038290,-1942.8516063,0.00014739,2]
[405925318,1771419038299,-4030.10163135,0.000149,2]
[405925320,1771419038308,-386.10949809,0.00014951,7]
[405925322,1771419038317,-10774.43189459,0.00014999,2]
[405925492,1771419040171,-1202.97155419,0.00014999,2]
[405925494,1771419040180,-110.26103297,0.00015,2]
[405926039,1771419045459,-79.59896703,0.00015,2]
[405926041,1771419045469,-215.0102568,0.00015035,2]
[405926043,1771419045479,-683.73556953,0.00015134,2]
[405926046,1771419045488,-22.15346664,0.0001517,2]
[405926048,1771419045500,-1208.57055851,0.0001517,2]
[405926050,1771419045510,-315.0,0.00015284,2]
[405926052,1771419045519,-420.0,0.00015284,2]
[405926054,1771419045527,-300.0,0.00015284,2]
[405926056,1771419045536,-600.0,0.00015297,2]
[405926058,1771419045545,-1200.0,0.00015345,2]
[405926060,1771419045555,-1011.57400857,0.00015511,2]
[405926062,1771419045565,-72.0794963,0.00015511,2]
[405926080,1771419045729,-490.46861213,0.00015511,2]
[405926082,1771419045738,-2187.95382248,0.00015571,2]
[405926084,1771419045747,-395.9581556,0.00015674,2]
[405926086,1771419045756,-621.32364733,0.00016185,2]
[405926088,1771419045766,-1542.89355435,0.0001624,7]
[405926090,1771419045775,-587.0,0.00016745,2]
[405926092,1771419045785,-1477.48177,0.00016806,2]
[405926094,1771419045794,-720.0,0.00016827,2]
[405926096,1771419045803,-500.0,0.00016928,2]
[405926098,1771419045812,-208.20477535,0.00017264,2]
[405926100,1771419045822,-443.00666,0.000175,2]
[405926102,1771419045831,-250.0,0.00018136,2]
[405926104,1771419045841,-250.0,0.00018136,2]
[405926106,1771419045849,-250.0,0.00018136,2]
[405926108,1771419045860,-250.0,0.00018136,2]
[405926110,1771419045869,-2000.0,0.00018136,2]
[405926112,1771419045879,-250.0,0.00018136,2]
[405926114,1771419045888,-2074.0,0.00018136,2]
[405926116,1771419045898,-250.0,0.00018136,2]
[405926118,1771419045907,-2150.738,0.00018136,2]
[405926120,1771419045916,-250.0,0.00018136,2]
[405926122,1771419045926,-1270.31668253,0.00018136,2]
[405926124,1771419045939,-250.0,0.00018136,2]
[405926126,1771419045949,-443.00666,0.00018237,2]
[405926128,1771419045959,-4030.10163128,0.00018471,2]
[405926130,1771419045968,-864.0,0.00018509,2]
[405926132,1771419045979,-743.5267485,0.00018871,2]
[405926134,1771419045988,-443.00666,0.00018974,2]
[405926136,1771419045998,-168.0,0.00019181,2]
[405926138,1771419046008,-1728.0,0.00019232,5]
[405926140,1771419046018,-168.0,0.0001927,2]
[405926142,1771419046027,-443.00666,0.0001971,2]
[405926144,1771419046036,-168.0,0.00019721,2]
[405926146,1771419046045,-168.0,0.00019854,2]
[405926148,1771419046055,-2273.611,0.00020066,2]
[405926150,1771419046065,-633.0,0.00020066,2]
[405926152,1771419046074,-1000.0,0.0002036,2]
[405926154,1771419046083,-443.00666,0.00020447,2]
[405926156,1771419046092,-168.0,0.00020463,2]
[405926158,1771419046102,-200.70781549,0.0002058,2]
[405926160,1771419046111,-304.66,0.0002098,3]
[405926162,1771419046119,-152.33,0.0002098,3]
[405926164,1771419046128,-609.32,0.0002099,3]
[405926166,1771419046137,-30789.84710624,0.0002099,10]
[405929123,1771420006129,-150.0,0.00012947,2]
[405929124,1771420006152,-31.22554731,0.00013078,2]
[405929148,1771420231825,-150.0,0.00012979,2]
[405929149,1771420231836,-150.0,0.0001311,2]
[405929150,1771420231845,-500.0,0.00013143,2]
[405929151,1771420231854,-136.66677709,0.00014127,2]
[405929152,1771420231865,-3374.24376644,0.00014127,2]
[405929153,1771420231874,-300.0,0.00014226,2]
[405929154,1771420231883,-300.0,0.00014226,2]
[405929155,1771420231892,-300.0,0.00014226,2]
[405929156,1771420231901,-300.0,0.00014226,2]
[405929157,1771420231911,-163.66604458,0.00014227,2]
[405929159,1771420231919,-487.83017195,0.00014227,2]
[405929160,1771420231929,-300.0,0.00014227,2]
[405929161,1771420231938,-8822.08644664,0.00014228,2]
[405929168,1771420238096,-2606.77159535,0.00014228,2]
[405929169,1771420238108,-2103.2061496,0.00014228,2]
[405929894,1771420245898,-14236.37077716,0.00014228,2]
[405929896,1771420245908,-300.0,0.00014228,2]
[405929898,1771420245916,-300.0,0.00014228,2]
[405929900,1771420245926,-300.0,0.00014228,2]
[405929902,1771420245936,-300.0,0.00014228,2]
[405929904,1771420245945,-300.0,0.00014228,2]
[405929906,1771420245955,-300.0,0.00014228,2]
[405929908,1771420245965,-300.0,0.00014228,2]
[405929910,1771420245975,-300.0,0.00014228,2]
[405929912,1771420245984,-300.0,0.00014228,2]
[405929914,1771420245992,-300.0,0.00014228,2]
[405929916,1771420246002,-300.0,0.00014228,2]
[405929918,1771420246011,-300.0,0.00014228,2]
[405929920,1771420246021,-300.0,0.00014228,2]
[405929922,1771420246030,-300.0,0.00014228,2]
[405929924,1771420246039,-300.0,0.00014228,2]
[405929926,1771420246048,-600.0,0.00014228,2]
[405929928,1771420246057,-266.18494728,0.0001511,2]
[405929930,1771420246066,-791.6929879,0.00015312,2]
[405929932,1771420246075,-178.0,0.00015582,2]
[405929934,1771420246084,-420.0,0.00015582,2]
[405929936,1771420246093,-720.0,0.00015651,2]
[405929938,1771420246103,-587.0,0.00017067,2]
[405929940,1771420246112,-864.0,0.00017216,2]
[405929942,1771420246121,-3510.91054353,0.00017809,2]
[405929944,1771420246130,-500.0,0.00018431,2]
[405929946,1771420246139,-1000.0,0.00018937,2]
[405929948,1771420246148,-1656.0,0.00019726,5]
[405929950,1771420246157,-188.718,0.0002,2]
[405929952,1771420246166,-743.5267485,0.00020116,2]
[405929954,1771420246175,-1377.0,0.00020754,2]
[405929956,1771420246185,-181.0,0.00020754,2]
[405929957,1771420246194,-186.3477388,0.0002079,2]
[405929959,1771420246204,-1000.0,0.00020831,2]
[405929961,1771420246213,-244.0,0.00020831,2]
[405929963,1771420246223,-302.71630158,0.00020956,2]
[405929966,1771420246234,-17359.97382049,0.0002097,10]
[405930617,1771421431911,-213.21,0.000125,2]
[405930618,1771421431920,-779.66666666,0.00012522,2]
[405930619,1771421431930,-779.66666666,0.00012648,2]
[405930620,1771421431939,-202.53422528,0.00012776,20]
[405930621,1771421431948,-601.0,0.00012776,2]
[405930622,1771421431957,-203.66333054,0.00012841,2]
[405930623,1771421431967,-300.0,0.00014224,2]
[405930624,1771421431978,-1200.0,0.00014224,2]
[405930625,1771421431987,-500.0,0.00014225,2]
[405930626,1771421431997,-500.0,0.00014225,2]
[405930627,1771421432006,-271.28825118,0.00014225,2]
[405930628,1771421432018,-228.71174882,0.00014225,2]
[405930629,1771421432027,-500.0,0.00014225,2]
[405930630,1771421432037,-430.6481301,0.00014225,2]
[405930631,1771421432048,-161.32528247,0.00014225,2]
[405930632,1771421432058,-500.0,0.00014226,2]
[405930633,1771421432067,-500.0,0.00014226,2]
[405930634,1771421432076,-500.0,0.00014226,2]
[405930635,1771421432204,-500.0,0.00014226,2]
[405930636,1771421432216,-60.01099473,0.00014226,2]
[405931116,1771421444880,-2028.2266716,0.00014084,2]
[405931118,1771421444889,-439.98900527,0.00014226,2]
[405931120,1771421444899,-159.80005911,0.00014226,2]
[405931122,1771421444907,-212.18071263,0.00014226,2]
[405931234,1771421445967,-287.81928737,0.00014226,2]